[Event "Early-Titled-Tuesday-Blitz-October-24-2023"]
[Site "Chess.com"]
[Date "2023.10.24"]
[Round "5"]
[White "rocket10jan"]
[Black "pinguino120"]
[Result "1-0"]
[WhiteElo "2386"]
[BlackElo "2194"]
[TimeControl "180+1"]
[EndTime "8:53:52 PDT"]
[Termination "rocket10jan won by resignation"]

1. e4 {[%clk 0:02:55.7]} 1... c6 {[%clk 0:03:00.4]} 2. Nf3 {[%clk 0:02:53.9]}
2... d5 {[%clk 0:02:59.7]} 3. Nc3 {[%clk 0:02:54.7]} 3... g6 {[%clk 0:02:59.1]}
4. d4 {[%clk 0:02:53.9]} 4... Bg4 {[%clk 0:02:49.8]} 5. e5 {[%clk 0:02:49.5]}
5... Bg7 {[%clk 0:02:46.4]} 6. h3 {[%clk 0:02:48.4]} 6... Bxf3 {[%clk
0:02:45.2]} 7. Qxf3 {[%clk 0:02:49.3]} 7... f6 {[%clk 0:02:36.3]} 8. exf6 {[%clk
0:02:47.2]} 8... Nxf6 {[%clk 0:02:36.3]} 9. Bd3 {[%clk 0:02:44.5]} 9... O-O
{[%clk 0:02:35.9]} 10. Qe2 {[%clk 0:02:43.2]} 10... Qd6 {[%clk 0:02:21.8]} 11.
O-O {[%clk 0:02:39.6]} 11... Nbd7 {[%clk 0:02:21.4]} 12. Bg5 {[%clk 0:02:30.5]}
12... e5 {[%clk 0:02:17.7]} 13. dxe5 {[%clk 0:02:29.5]} 13... Nxe5 {[%clk
0:02:17.5]} 14. Rae1 {[%clk 0:02:22.5]} 14... Nxd3 {[%clk 0:02:15.3]} 15. Qxd3
{[%clk 0:02:23.4]} 15... Rae8 {[%clk 0:02:13.7]} 16. Bh4 {[%clk 0:02:21.5]}
16... Nh5 {[%clk 0:01:50]} 17. Ne2 {[%clk 0:02:08.1]} 17... Re4 {[%clk
0:01:33.8]} 18. Bg3 {[%clk 0:01:57.5]} 18... Nxg3 {[%clk 0:01:32.5]} 19. Nxg3
{[%clk 0:01:58.4]} 19... Rxe1 {[%clk 0:01:09.2]} 20. Rxe1 {[%clk 0:01:59.3]}
20... Qf4 {[%clk 0:01:09.5]} 21. Qe2 {[%clk 0:01:48.8]} 21... Bd4 {[%clk
0:01:05.6]} 22. Nh1 {[%clk 0:01:37.1]} 22... Bxb2 {[%clk 0:00:54]} 23. Rb1
{[%clk 0:01:36.5]} 23... Qf6 {[%clk 0:00:53.6]} 24. c4 {[%clk 0:01:32]} 24...
Be5 {[%clk 0:00:43.4]} 25. cxd5 {[%clk 0:01:29.1]} 25... cxd5 {[%clk 0:00:36.9]}
26. Rxb7 {[%clk 0:01:27.9]} 26... Rf7 {[%clk 0:00:36.6]} 27. Rxf7 {[%clk
0:01:22.5]} 27... Kxf7 {[%clk 0:00:37.5]} 28. Qd3 {[%clk 0:01:14]} 28... d4
{[%clk 0:00:35.6]} 29. f3 {[%clk 0:01:04.4]} 29... Qf4 {[%clk 0:00:32.2]} 30.
Nf2 {[%clk 0:00:56.5]} 30... Qc1+ {[%clk 0:00:31.2]} 31. Nd1 {[%clk 0:00:54.9]}
31... Qb2 {[%clk 0:00:20.1]} 32. Nxb2 {[%clk 0:00:51.9]} 1-0

[Event "Early-Titled-Tuesday-Blitz-October-24-2023"]
[Site "Chess.com"]
[Date "2023.10.24"]
[Round "5"]
[White "HeroRubiksCube"]
[Black "IljaZaragatski"]
[Result "1-0"]
[WhiteElo "2552"]
[BlackElo "2632"]
[TimeControl "180+1"]
[EndTime "8:53:53 PDT"]
[Termination "HeroRubiksCube won by checkmate"]

1. e4 {[%clk 0:03:00.9]} 1... e6 {[%clk 0:02:47.9]} 2. d3 {[%clk 0:02:59.8]}
2... d5 {[%clk 0:02:48]} 3. Nd2 {[%clk 0:02:59.9]} 3... Nf6 {[%clk 0:02:47.5]}
4. g3 {[%clk 0:02:59.8]} 4... b6 {[%clk 0:02:47.7]} 5. Bg2 {[%clk 0:03:00.1]}
5... Bb7 {[%clk 0:02:47.9]} 6. Qe2 {[%clk 0:03:00.2]} 6... Be7 {[%clk
0:02:47.8]} 7. Ngf3 {[%clk 0:02:59.9]} 7... c5 {[%clk 0:02:47.2]} 8. O-O {[%clk
0:03:00]} 8... Nc6 {[%clk 0:02:47.4]} 9. c3 {[%clk 0:03:00.1]} 9... Qc7 {[%clk
0:02:47.5]} 10. Re1 {[%clk 0:03:00.5]} 10... h6 {[%clk 0:02:47.4]} 11. e5 {[%clk
0:03:00.4]} 11... Nd7 {[%clk 0:02:47.2]} 12. Nf1 {[%clk 0:03:00.5]} 12... g5
{[%clk 0:02:41.9]} 13. h3 {[%clk 0:02:44.6]} 13... O-O-O {[%clk 0:02:39]} 14. a3
{[%clk 0:02:42.1]} 14... Rdg8 {[%clk 0:02:32]} 15. b4 {[%clk 0:02:41]} 15... h5
{[%clk 0:02:29.6]} 16. b5 {[%clk 0:02:34.4]} 16... Na5 {[%clk 0:02:29.4]} 17. d4
{[%clk 0:02:30.4]} 17... Kb8 {[%clk 0:02:22.5]} 18. N3d2 {[%clk 0:02:24.2]}
18... cxd4 {[%clk 0:02:03.9]} 19. cxd4 {[%clk 0:02:22.1]} 19... Qc3 {[%clk
0:02:03.9]} 20. Rb1 {[%clk 0:02:13.4]} 20... Qxd4 {[%clk 0:02:01.8]} 21. Bb2
{[%clk 0:02:10.6]} 21... Qa4 {[%clk 0:01:55.1]} 22. Ne3 {[%clk 0:02:05.3]} 22...
h4 {[%clk 0:01:46.3]} 23. g4 {[%clk 0:02:03.2]} 23... Rc8 {[%clk 0:01:44.7]} 24.
Rec1 {[%clk 0:01:57]} 24... Rxc1+ {[%clk 0:01:39.8]} 25. Rxc1 {[%clk 0:01:57.9]}
25... Rc8 {[%clk 0:01:40]} 26. Rxc8+ {[%clk 0:01:52.7]} 26... Kxc8 {[%clk
0:01:40.6]} 27. Qd3 {[%clk 0:01:52.7]} 27... Qf4 {[%clk 0:01:26.4]} 28. Nf3
{[%clk 0:01:19]} 28... Kb8 {[%clk 0:01:20.5]} 29. Bc3 {[%clk 0:01:16.3]} 29...
Nc5 {[%clk 0:01:15.4]} 30. Qh7 {[%clk 0:01:12.4]} 30... Nc4 {[%clk 0:01:11.8]}
31. Qg8+ {[%clk 0:01:11.3]} 31... Kc7 {[%clk 0:01:09.8]} 32. Nxc4 {[%clk
0:01:08.3]} 32... dxc4 {[%clk 0:01:10.2]} 33. Nd4 {[%clk 0:01:03.4]} 33... Qc1+
{[%clk 0:01:03.9]} 34. Kh2 {[%clk 0:00:58.5]} 34... Bxg2 {[%clk 0:01:01]} 35.
Kxg2 {[%clk 0:00:51.9]} 35... Qxc3 {[%clk 0:01:00.7]} 36. Nc6 {[%clk 0:00:51.6]}
36... Nd3 {[%clk 0:00:45.7]} 37. Qb8+ {[%clk 0:00:46.3]} 37... Kd7 {[%clk
0:00:43.2]} 38. Qb7+ {[%clk 0:00:45.6]} 38... Ke8 {[%clk 0:00:41.7]} 39. Qxe7#
{[%clk 0:00:45.7]} 1-0

[Event "Early-Titled-Tuesday-Blitz-October-24-2023"]
[Site "Chess.com"]
[Date "2023.10.24"]
[Round "5"]
[White "Manukyan_Artak"]
[Black "Fraler15"]
[Result "1-0"]
[WhiteElo "2410"]
[BlackElo "2253"]
[TimeControl "180+1"]
[EndTime "8:53:54 PDT"]
[Termination "Manukyan_Artak won by resignation"]

1. e4 {[%clk 0:02:57.4]} 1... c5 {[%clk 0:03:00.2]} 2. Nf3 {[%clk 0:02:56.2]}
2... e6 {[%clk 0:03:00.6]} 3. c3 {[%clk 0:02:56.4]} 3... d5 {[%clk 0:02:59.7]}
4. e5 {[%clk 0:02:57]} 4... d4 {[%clk 0:02:58.4]} 5. cxd4 {[%clk 0:02:56.7]}
5... cxd4 {[%clk 0:02:58.4]} 6. Bb5+ {[%clk 0:02:57.3]} 6... Nc6 {[%clk
0:02:20.9]} 7. Bxc6+ {[%clk 0:02:56.6]} 7... bxc6 {[%clk 0:02:20.9]} 8. Qa4
{[%clk 0:02:57.4]} 8... Bc5 {[%clk 0:01:49.1]} 9. Qxc6+ {[%clk 0:02:51.6]} 9...
Bd7 {[%clk 0:01:48.4]} 10. Qe4 {[%clk 0:02:44.2]} 10... Rc8 {[%clk 0:01:13.1]}
11. O-O {[%clk 0:02:33.9]} 11... Bc6 {[%clk 0:01:08.8]} 12. Qf4 {[%clk
0:02:32.9]} 12... Ne7 {[%clk 0:01:07.6]} 13. d3 {[%clk 0:02:26.6]} 13... Ng6
{[%clk 0:01:04.8]} 14. Qg3 {[%clk 0:02:24.2]} 14... h5 {[%clk 0:00:40.8]} 15.
Bg5 {[%clk 0:02:16.1]} 15... Qd5 {[%clk 0:00:39.6]} 16. h4 {[%clk 0:02:11.1]}
16... Bb6 {[%clk 0:00:26.4]} 17. Nbd2 {[%clk 0:02:02.9]} 17... Ne7 {[%clk
0:00:21.9]} 18. Bxe7 {[%clk 0:01:48.5]} 18... Kxe7 {[%clk 0:00:22.8]} 19. Ne4
{[%clk 0:01:48.5]} 19... Kf8 {[%clk 0:00:16.8]} 20. Nd6 {[%clk 0:01:41.2]} 20...
Rd8 {[%clk 0:00:15.6]} 21. Rac1 {[%clk 0:01:30.4]} 21... Bc7 {[%clk 0:00:15.1]}
22. Nxd4 {[%clk 0:01:17.8]} 22... Bxd6 {[%clk 0:00:15.1]} 23. Nxc6 {[%clk
0:01:09.4]} 23... Rc8 {[%clk 0:00:11.6]} 24. Nb4 {[%clk 0:00:47.9]} 24... Rxc1
{[%clk 0:00:10.6]} 25. Nxd5 {[%clk 0:00:47.8]} 25... Rxf1+ {[%clk 0:00:09.6]}
26. Kxf1 {[%clk 0:00:48.7]} 1-0

[Event "Early-Titled-Tuesday-Blitz-October-24-2023"]
[Site "Chess.com"]
[Date "2023.10.24"]
[Round "5"]
[White "DonJuanEGenaro"]
[Black "ZeGood_ZeBad_ZeUgly"]
[Result "1-0"]
[WhiteElo "1814"]
[BlackElo "2316"]
[TimeControl "180+1"]
[EndTime "8:54:01 PDT"]
[Termination "DonJuanEGenaro won on time"]

1. d4 {[%clk 0:03:00.9]} 1... Nf6 {[%clk 0:02:58.3]} 2. Nf3 {[%clk 0:02:55.4]}
2... e6 {[%clk 0:02:56.3]} 3. g3 {[%clk 0:02:54]} 3... c5 {[%clk 0:02:54.1]} 4.
c3 {[%clk 0:02:53.1]} 4... Nc6 {[%clk 0:02:51.8]} 5. Bg2 {[%clk 0:02:52.8]} 5...
d5 {[%clk 0:02:50.8]} 6. O-O {[%clk 0:02:52.3]} 6... Be7 {[%clk 0:02:47.3]} 7.
a3 {[%clk 0:02:48.2]} 7... c4 {[%clk 0:02:44.6]} 8. Bg5 {[%clk 0:02:35.1]} 8...
h6 {[%clk 0:02:37.5]} 9. Bxf6 {[%clk 0:02:34.7]} 9... gxf6 {[%clk 0:02:30.8]}
10. Nbd2 {[%clk 0:02:34.2]} 10... f5 {[%clk 0:02:30.3]} 11. b3 {[%clk
0:02:25.1]} 11... b5 {[%clk 0:02:27.4]} 12. a4 {[%clk 0:02:23.1]} 12... cxb3
{[%clk 0:01:28.9]} 13. axb5 {[%clk 0:02:21.5]} 13... Na5 {[%clk 0:01:26.2]} 14.
Nxb3 {[%clk 0:02:20.1]} 14... Nc4 {[%clk 0:01:24.7]} 15. Nbd2 {[%clk 0:02:18.9]}
15... Nd6 {[%clk 0:01:23.1]} 16. c4 {[%clk 0:02:08.5]} 16... Bb7 {[%clk
0:00:56.7]} 17. Ne5 {[%clk 0:02:07.8]} 17... Bf6 {[%clk 0:00:26.3]} 18. Nc6
{[%clk 0:01:55.9]} 18... Bxc6 {[%clk 0:00:26]} 19. bxc6 {[%clk 0:01:55]} 19...
Bxd4 {[%clk 0:00:21.1]} 20. cxd5 {[%clk 0:01:49.2]} 20... Bxa1 {[%clk
0:00:17.6]} 21. Qxa1 {[%clk 0:01:47.6]} 21... O-O {[%clk 0:00:16.4]} 22. dxe6
{[%clk 0:01:46.9]} 22... fxe6 {[%clk 0:00:13.8]} 23. c7 {[%clk 0:01:38.7]} 23...
Qxc7 {[%clk 0:00:13.6]} 24. Bxa8 {[%clk 0:01:37.3]} 24... Rxa8 {[%clk
0:00:14.5]} 25. Rc1 {[%clk 0:01:34.5]} 25... Qd7 {[%clk 0:00:12.3]} 26. Nf3
{[%clk 0:01:32.7]} 26... Nf7 {[%clk 0:00:07.9]} 27. Ne5 {[%clk 0:01:18.3]} 27...
Nxe5 {[%clk 0:00:06]} 28. Qxe5 {[%clk 0:01:17.8]} 28... Rc8 {[%clk 0:00:04]} 29.
Rb1 {[%clk 0:01:05.3]} 29... a5 {[%clk 0:00:03]} 30. Qf6 {[%clk 0:01:05.2]}
30... Qg7 {[%clk 0:00:02.1]} 31. Qxe6+ {[%clk 0:01:04.7]} 1-0

[Event "Early-Titled-Tuesday-Blitz-October-24-2023"]
[Site "Chess.com"]
[Date "2023.10.24"]
[Round "5"]
[White "motivated_bishop"]
[Black "Boninknights"]
[Result "1-0"]
[WhiteElo "2547"]
[BlackElo "2299"]
[TimeControl "180+1"]
[EndTime "8:54:09 PDT"]
[Termination "motivated_bishop won by resignation"]

1. d4 {[%clk 0:03:00.9]} 1... Nf6 {[%clk 0:02:59.6]} 2. c4 {[%clk 0:03:01.2]}
2... e6 {[%clk 0:02:59.6]} 3. Nc3 {[%clk 0:03:01.2]} 3... Bb4 {[%clk 0:02:59.4]}
4. e3 {[%clk 0:03:01.7]} 4... c5 {[%clk 0:02:58.4]} 5. Bd3 {[%clk 0:03:01.5]}
5... d5 {[%clk 0:02:57.7]} 6. Nf3 {[%clk 0:03:01.5]} 6... Nc6 {[%clk 0:02:56.9]}
7. O-O {[%clk 0:03:00.1]} 7... O-O {[%clk 0:02:55.9]} 8. cxd5 {[%clk 0:03:00.4]}
8... exd5 {[%clk 0:02:51.6]} 9. dxc5 {[%clk 0:03:00.8]} 9... Bxc5 {[%clk
0:02:50.1]} 10. h3 {[%clk 0:02:56.3]} 10... a6 {[%clk 0:02:46.4]} 11. b3 {[%clk
0:02:56.5]} 11... Qd6 {[%clk 0:02:44.5]} 12. Bb2 {[%clk 0:02:54.5]} 12... Rd8
{[%clk 0:02:44]} 13. Ne2 {[%clk 0:02:50.2]} 13... Ba7 {[%clk 0:02:28.8]} 14. Rc1
{[%clk 0:02:50.1]} 14... Be6 {[%clk 0:02:27.1]} 15. Bb1 {[%clk 0:02:49.9]} 15...
Rac8 {[%clk 0:02:24.6]} 16. Nfd4 {[%clk 0:02:43.5]} 16... Bb8 {[%clk 0:02:21.1]}
17. f4 {[%clk 0:02:30.3]} 17... Ba7 {[%clk 0:02:07]} 18. Kh2 {[%clk 0:02:22.7]}
18... Bd7 {[%clk 0:02:01.9]} 19. Nxc6 {[%clk 0:01:51.1]} 19... Bxc6 {[%clk
0:01:45]} 20. Be5 {[%clk 0:01:51.1]} 20... Qe6 {[%clk 0:01:40.9]} 21. Nd4 {[%clk
0:01:50.3]} 21... Bxd4 {[%clk 0:01:34.6]} 22. Qxd4 {[%clk 0:01:50]} 22... Ne8
{[%clk 0:01:24.2]} 23. f5 {[%clk 0:01:46.7]} 23... Qh6 {[%clk 0:01:22.6]} 24. f6
{[%clk 0:01:35.6]} 24... g6 {[%clk 0:01:19.3]} 25. Rf4 {[%clk 0:01:01.9]} 25...
Nd6 {[%clk 0:01:15]} 26. Rh4 {[%clk 0:00:51]} 26... Qf8 {[%clk 0:01:13.3]} 27.
Qf4 {[%clk 0:00:37.8]} 27... Ne4 {[%clk 0:01:07.3]} 28. Bxe4 {[%clk 0:00:28.8]}
28... dxe4 {[%clk 0:01:06.1]} 29. Rh6 {[%clk 0:00:26.8]} 29... Rd2 {[%clk
0:01:00.7]} 30. Qh4 {[%clk 0:00:24.1]} 30... Qb4 {[%clk 0:00:52.4]} 31. Rxh7
{[%clk 0:00:16.4]} 31... Rxg2+ {[%clk 0:00:50.4]} 32. Kh1 {[%clk 0:00:16.3]}
32... Rh2+ {[%clk 0:00:45.9]} 33. Bxh2 {[%clk 0:00:16.3]} 1-0

[Event "Early-Titled-Tuesday-Blitz-October-24-2023"]
[Site "Chess.com"]
[Date "2023.10.24"]
[Round "5"]
[White "MunichMouse"]
[Black "CHENNAIBOND"]
[Result "1-0"]
[WhiteElo "2326"]
[BlackElo "1675"]
[TimeControl "180+1"]
[EndTime "8:54:12 PDT"]
[Termination "MunichMouse won by resignation"]

1. d4 {[%clk 0:03:00.9]} 1... Nf6 {[%clk 0:02:59.4]} 2. c4 {[%clk 0:03:00.9]}
2... e6 {[%clk 0:02:59.7]} 3. Nf3 {[%clk 0:03:00.8]} 3... b6 {[%clk 0:02:59.6]}
4. g3 {[%clk 0:03:01]} 4... Ba6 {[%clk 0:02:59.1]} 5. Qc2 {[%clk 0:03:00.7]}
5... Bb4+ {[%clk 0:02:56.2]} 6. Bd2 {[%clk 0:02:58.8]} 6... Be7 {[%clk
0:02:56.1]} 7. Bg2 {[%clk 0:02:59]} 7... c6 {[%clk 0:02:53.9]} 8. O-O {[%clk
0:02:58.2]} 8... d5 {[%clk 0:02:47.2]} 9. b3 {[%clk 0:02:58.2]} 9... O-O {[%clk
0:02:44.3]} 10. Ne5 {[%clk 0:02:53.7]} 10... Nfd7 {[%clk 0:02:40.3]} 11. Nxd7
{[%clk 0:02:52.8]} 11... Nxd7 {[%clk 0:02:36.7]} 12. e4 {[%clk 0:02:53.1]} 12...
dxc4 {[%clk 0:02:34.6]} 13. bxc4 {[%clk 0:02:52.1]} 13... c5 {[%clk 0:02:34.8]}
14. Qa4 {[%clk 0:02:35]} 14... Bb7 {[%clk 0:02:27.8]} 15. d5 {[%clk 0:02:33.7]}
15... exd5 {[%clk 0:02:21.3]} 16. exd5 {[%clk 0:02:33.5]} 16... Bf6 {[%clk
0:02:14.1]} 17. Bc3 {[%clk 0:02:33.5]} 17... Re8 {[%clk 0:01:49.9]} 18. Bh3
{[%clk 0:02:23.2]} 18... Ne5 {[%clk 0:01:44]} 19. Bg2 {[%clk 0:01:21]} 19... a6
{[%clk 0:01:43.5]} 20. Qb3 {[%clk 0:01:16.5]} 20... b5 {[%clk 0:01:29.1]} 21.
Nd2 {[%clk 0:00:51]} 21... b4 {[%clk 0:01:20]} 22. Bb2 {[%clk 0:00:36.5]} 22...
Qd6 {[%clk 0:01:04.2]} 23. Ne4 {[%clk 0:00:36.3]} 23... Qd8 {[%clk 0:00:58.6]}
24. Nxf6+ {[%clk 0:00:36.5]} 24... gxf6 {[%clk 0:00:59.3]} 25. Rae1 {[%clk
0:00:35.2]} 25... a5 {[%clk 0:00:57.8]} 26. Qc2 {[%clk 0:00:33.9]} 26... Qd7
{[%clk 0:00:40.3]} 27. f4 {[%clk 0:00:33.8]} 27... Ng4 {[%clk 0:00:36.5]} 28.
Bh3 {[%clk 0:00:30.9]} 28... f5 {[%clk 0:00:31.6]} 29. Ba1 {[%clk 0:00:26.4]}
29... Ne3 {[%clk 0:00:29]} 30. Qb2 {[%clk 0:00:26.3]} 1-0

[Event "Early-Titled-Tuesday-Blitz-October-24-2023"]
[Site "Chess.com"]
[Date "2023.10.24"]
[Round "5"]
[White "Nf3c5"]
[Black "Treasurechess777"]
[Result "0-1"]
[WhiteElo "2607"]
[BlackElo "2334"]
[TimeControl "180+1"]
[EndTime "8:54:14 PDT"]
[Termination "Treasurechess777 won on time"]

1. d4 {[%clk 0:03:00.9]} 1... Nf6 {[%clk 0:03:00.9]} 2. Nf3 {[%clk 0:02:59.7]}
2... d5 {[%clk 0:03:01.1]} 3. Bg5 {[%clk 0:02:59.2]} 3... Ne4 {[%clk 0:03:01.2]}
4. Bf4 {[%clk 0:02:57.9]} 4... Nd6 {[%clk 0:03:01.2]} 5. e3 {[%clk 0:02:50.2]}
5... c6 {[%clk 0:03:00.6]} 6. Bd3 {[%clk 0:02:36]} 6... g6 {[%clk 0:03:00.4]} 7.
h4 {[%clk 0:02:32.8]} 7... Bg4 {[%clk 0:02:58.5]} 8. Nbd2 {[%clk 0:02:30.7]}
8... Bg7 {[%clk 0:02:57.6]} 9. c4 {[%clk 0:02:29]} 9... f6 {[%clk 0:02:57.2]}
10. Qb3 {[%clk 0:02:28.5]} 10... Qb6 {[%clk 0:02:26]} 11. c5 {[%clk 0:02:15.3]}
11... Qxb3 {[%clk 0:02:23.3]} 12. axb3 {[%clk 0:02:16.2]} 12... Nf7 {[%clk
0:02:16.6]} 13. Bxb8 {[%clk 0:02:11.6]} 13... Rxb8 {[%clk 0:02:17.5]} 14. Rxa7
{[%clk 0:02:11.8]} 14... e5 {[%clk 0:02:13.7]} 15. Be2 {[%clk 0:02:07]} 15... e4
{[%clk 0:02:04.3]} 16. Nh2 {[%clk 0:01:59.5]} 16... Bxe2 {[%clk 0:01:56.9]} 17.
Kxe2 {[%clk 0:01:58.9]} 17... f5 {[%clk 0:01:56.7]} 18. f4 {[%clk 0:01:45.6]}
18... exf3+ {[%clk 0:01:46]} 19. Nhxf3 {[%clk 0:01:28.8]} 19... Kd7 {[%clk
0:01:46.2]} 20. Kd3 {[%clk 0:01:17.5]} 20... Rhe8 {[%clk 0:01:44.1]} 21. Rha1
{[%clk 0:01:15]} 21... h6 {[%clk 0:01:34.1]} 22. b4 {[%clk 0:01:12.3]} 22... g5
{[%clk 0:01:32.6]} 23. Nb3 {[%clk 0:01:09.3]} 23... g4 {[%clk 0:01:29.2]} 24.
Nfd2 {[%clk 0:00:50.7]} 24... h5 {[%clk 0:01:28.7]} 25. Na5 {[%clk 0:00:33.6]}
25... Bh6 {[%clk 0:01:25.3]} 26. Nxb7 {[%clk 0:00:29.4]} 26... Rxe3+ {[%clk
0:01:23.7]} 27. Kc2 {[%clk 0:00:30]} 27... Ke6 {[%clk 0:01:09.4]} 28. R1a6
{[%clk 0:00:14.3]} 28... Rc8 {[%clk 0:01:09.6]} 29. Nb3 {[%clk 0:00:11.7]} 29...
f4 {[%clk 0:00:51.8]} 0-1

[Event "Early-Titled-Tuesday-Blitz-October-24-2023"]
[Site "Chess.com"]
[Date "2023.10.24"]
[Round "5"]
[White "mary-sanna"]
[Black "UK_23"]
[Result "0-1"]
[WhiteElo "2206"]
[BlackElo "2397"]
[TimeControl "180+1"]
[EndTime "8:54:15 PDT"]
[Termination "UK_23 won by checkmate"]

1. d4 {[%clk 0:03:00]} 1... d5 {[%clk 0:03:00.3]} 2. c4 {[%clk 0:02:59.8]} 2...
e6 {[%clk 0:03:00.9]} 3. Nf3 {[%clk 0:02:59.7]} 3... Nf6 {[%clk 0:03:01.4]} 4.
g3 {[%clk 0:02:59.8]} 4... Be7 {[%clk 0:03:00.8]} 5. Bg2 {[%clk 0:02:59.7]} 5...
O-O {[%clk 0:03:01.6]} 6. O-O {[%clk 0:02:59.8]} 6... c6 {[%clk 0:03:02.2]} 7.
Nc3 {[%clk 0:02:59]} 7... b6 {[%clk 0:03:02.4]} 8. Qd3 {[%clk 0:02:57.3]} 8...
Ba6 {[%clk 0:02:54.3]} 9. b3 {[%clk 0:02:56.7]} 9... Nbd7 {[%clk 0:02:53.3]} 10.
e4 {[%clk 0:02:55.5]} 10... dxe4 {[%clk 0:02:49.2]} 11. Nxe4 {[%clk 0:02:56.4]}
11... Rc8 {[%clk 0:02:46.7]} 12. Rd1 {[%clk 0:02:43.9]} 12... c5 {[%clk
0:02:41.3]} 13. Bb2 {[%clk 0:02:17.3]} 13... Qc7 {[%clk 0:02:24.5]} 14. dxc5
{[%clk 0:01:09.4]} 14... Nxc5 {[%clk 0:02:18.8]} 15. Nxc5 {[%clk 0:01:09]} 15...
Qxc5 {[%clk 0:02:19.7]} 16. Qc3 {[%clk 0:00:55.2]} 16... b5 {[%clk 0:01:56.3]}
17. Qa5 {[%clk 0:00:40]} 17... Qb6 {[%clk 0:01:50.5]} 18. Qxb6 {[%clk
0:00:35.9]} 18... axb6 {[%clk 0:01:51.4]} 19. cxb5 {[%clk 0:00:35.2]} 19... Bxb5
{[%clk 0:01:52.3]} 20. Nd4 {[%clk 0:00:33.6]} 20... Be8 {[%clk 0:01:42.7]} 21.
Rac1 {[%clk 0:00:32.9]} 21... Rd8 {[%clk 0:01:36.2]} 22. Nc6 {[%clk 0:00:26.6]}
22... Bxc6 {[%clk 0:01:35.9]} 23. Bxc6 {[%clk 0:00:20.8]} 23... Bc5 {[%clk
0:01:35.9]} 24. h3 {[%clk 0:00:17.4]} 24... h6 {[%clk 0:01:27]} 25. Bxf6 {[%clk
0:00:17.3]} 25... gxf6 {[%clk 0:01:27.3]} 26. a4 {[%clk 0:00:18.2]} 26... Kg7
{[%clk 0:01:25.7]} 27. Bb5 {[%clk 0:00:18.2]} 27... f5 {[%clk 0:01:24.6]} 28.
Kf1 {[%clk 0:00:18.4]} 28... Kf6 {[%clk 0:01:24.7]} 29. f4 {[%clk 0:00:18.6]}
29... Rg8 {[%clk 0:01:20.1]} 30. Kg2 {[%clk 0:00:18.6]} 30... Be3 {[%clk
0:01:14.7]} 31. Rxd8 {[%clk 0:00:18.3]} 31... Rxd8 {[%clk 0:01:15.6]} 32. Rc2
{[%clk 0:00:17.8]} 32... Rd1 {[%clk 0:01:11.2]} 33. Kf3 {[%clk 0:00:17.7]} 33...
Bc5 {[%clk 0:01:10.1]} 34. Re2 {[%clk 0:00:17]} 34... Rf1+ {[%clk 0:01:09.3]}
35. Kg2 {[%clk 0:00:16.7]} 35... Rg1+ {[%clk 0:01:09.8]} 36. Kf3 {[%clk
0:00:16.3]} 36... Rb1 {[%clk 0:01:10]} 37. Bc4 {[%clk 0:00:15.6]} 37... h5
{[%clk 0:01:09.9]} 38. Rd2 {[%clk 0:00:15.7]} 38... Rh1 {[%clk 0:01:07.8]} 39.
h4 {[%clk 0:00:15.9]} 39... Re1 {[%clk 0:01:06]} 40. Rd7 {[%clk 0:00:15.4]}
40... Re3+ {[%clk 0:01:01.2]} 41. Kg2 {[%clk 0:00:15.6]} 41... Rc3 {[%clk
0:01:01.9]} 42. Rb7 {[%clk 0:00:15.4]} 42... Rc2+ {[%clk 0:01:02.2]} 43. Kf3
{[%clk 0:00:15.5]} 43... Rf2# {[%clk 0:01:02.5]} 0-1

[Event "Early-Titled-Tuesday-Blitz-October-24-2023"]
[Site "Chess.com"]
[Date "2023.10.24"]
[Round "5"]
[White "NikolaGry"]
[Black "lilleper1"]
[Result "1-0"]
[WhiteElo "2752"]
[BlackElo "2875"]
[TimeControl "180+1"]
[EndTime "8:54:16 PDT"]
[Termination "NikolaGry won by resignation"]

1. d4 {[%clk 0:03:00.9]} 1... Nf6 {[%clk 0:02:59.3]} 2. Bg5 {[%clk 0:02:59.6]}
2... Ne4 {[%clk 0:02:58.5]} 3. h4 {[%clk 0:02:59.3]} 3... c5 {[%clk 0:02:56.7]}
4. dxc5 {[%clk 0:02:59.2]} 4... Qa5+ {[%clk 0:02:52.4]} 5. Nd2 {[%clk
0:02:58.7]} 5... Nxg5 {[%clk 0:02:50.4]} 6. hxg5 {[%clk 0:02:58.3]} 6... Qxc5
{[%clk 0:02:50.8]} 7. g6 {[%clk 0:02:57.7]} 7... fxg6 {[%clk 0:02:50.1]} 8. e3
{[%clk 0:02:57.8]} 8... Nc6 {[%clk 0:02:45.1]} 9. Ngf3 {[%clk 0:02:57.3]} 9...
Qb4 {[%clk 0:02:44.4]} 10. Qc1 {[%clk 0:02:41]} 10... d5 {[%clk 0:02:33.5]} 11.
c3 {[%clk 0:02:32.5]} 11... Qd6 {[%clk 0:02:33.3]} 12. Bd3 {[%clk 0:02:29.3]}
12... Bf5 {[%clk 0:02:33.1]} 13. Qc2 {[%clk 0:02:27.3]} 13... Bxd3 {[%clk
0:02:27.4]} 14. Qxd3 {[%clk 0:02:27]} 14... O-O-O {[%clk 0:02:28]} 15. O-O-O
{[%clk 0:02:20.9]} 15... Kb8 {[%clk 0:02:27.2]} 16. Ng5 {[%clk 0:02:02.7]} 16...
Ne5 {[%clk 0:02:16.2]} 17. Qe2 {[%clk 0:01:49.3]} 17... h6 {[%clk 0:02:16.2]}
18. f4 {[%clk 0:01:47.2]} 18... Qf6 {[%clk 0:01:21.3]} 19. Nde4 {[%clk 0:01:41]}
19... Qb6 {[%clk 0:01:21.2]} 20. fxe5 {[%clk 0:01:34.1]} 20... Rg8 {[%clk
0:01:19.5]} 21. Nf7 {[%clk 0:01:27.3]} 21... Rc8 {[%clk 0:01:19.9]} 22. Ng3
{[%clk 0:01:18.6]} 22... Qe6 {[%clk 0:01:09.2]} 23. Rhf1 {[%clk 0:01:16.1]}
23... g5 {[%clk 0:01:09.1]} 24. Qf3 {[%clk 0:01:12.2]} 24... Rc5 {[%clk
0:01:03.1]} 25. Qf5 {[%clk 0:01:04.4]} 25... Qxf5 {[%clk 0:00:54.5]} 26. Nxf5
{[%clk 0:00:59.2]} 26... Kc7 {[%clk 0:00:53.9]} 27. e6 {[%clk 0:00:56]} 27...
Rc6 {[%clk 0:00:51.2]} 28. Nd4 {[%clk 0:00:53.4]} 28... Ra6 {[%clk 0:00:51.1]}
29. Rf5 {[%clk 0:00:50.9]} 29... Rxa2 {[%clk 0:00:47.6]} 30. Rxd5 {[%clk
0:00:50.2]} 30... Ra1+ {[%clk 0:00:47.5]} 31. Kc2 {[%clk 0:00:50]} 31... Rxd1
{[%clk 0:00:48.4]} 32. Kxd1 {[%clk 0:00:50.2]} 32... g6 {[%clk 0:00:48.3]} 33.
Rd7+ {[%clk 0:00:49.1]} 33... Kb6 {[%clk 0:00:48.5]} 34. Rd8 {[%clk 0:00:49.2]}
34... h5 {[%clk 0:00:47.8]} 35. Ke2 {[%clk 0:00:46.5]} 35... g4 {[%clk 0:00:48]}
36. Kf1 {[%clk 0:00:43.5]} 36... h4 {[%clk 0:00:48.3]} 37. Kg1 {[%clk
0:00:42.9]} 37... g5 {[%clk 0:00:47.9]} 38. b4 {[%clk 0:00:38.6]} 38... a5
{[%clk 0:00:45.9]} 39. bxa5+ {[%clk 0:00:36.2]} 39... Kxa5 {[%clk 0:00:46.8]}
40. Rc8 {[%clk 0:00:36.1]} 40... b5 {[%clk 0:00:46.2]} 41. Nc6+ {[%clk
0:00:29.6]} 41... Kb6 {[%clk 0:00:44.3]} 42. Nxe7 {[%clk 0:00:27.1]} 1-0